fUST/lending_fUST_20250201
["ID","MTS","AMOUNT","RATE_DAILY","PERIOD"]
[351170533,1738389045363,-500.0,0.00016438,2]
[351170535,1738389045373,-500.0,0.00016438,2]
[351170537,1738389045383,-500.0,0.00016438,2]
[351170539,1738389045393,-500.0,0.00016438,2]
[351170541,1738389045403,-1159.11,0.00016438,2]
[351170543,1738389045413,-500.0,0.00016438,2]
[351170545,1738389045422,-500.0,0.00016438,2]
[351170547,1738389045432,-500.0,0.00016438,2]
[351170549,1738389045442,-500.0,0.00016438,2]
[351170551,1738389045451,-172.427042,0.00016439,2]
[351170553,1738389045461,-172.427042,0.00016439,2]
[351170555,1738389045471,-151.0,0.00016439,2]
[351170557,1738389045481,-3000.0,0.0001644,2]
[351170559,1738389045491,-165.522342,0.0001644,2]
[351170560,1738389045501,-208.342255,0.0001644,2]
[351170561,1738389045510,-208.342255,0.0001644,2]
[351170562,1738389045520,-349.134075,0.0001644,2]
[351170564,1738389045530,-349.134075,0.0001644,2]
[351170565,1738389045540,-455.243003,0.0001644,2]
[351170566,1738389045549,-789.3,0.00016449,2]
[351170567,1738389045558,-3000.0,0.0001645,2]
[351170568,1738389045568,-910.87053514,0.0001645,2]
[351170569,1738389045578,-3000.0,0.0001646,2]
[351170570,1738389045588,-1614.78,0.00016469,2]
[351170571,1738389045597,-3000.0,0.0001647,2]
[351170572,1738389045607,-502.42776964,0.00016473,2]
[351170573,1738389045617,-634.23044009,0.00016473,2]
[351170574,1738389045627,-349.134075,0.00016475,2]
[351170575,1738389045636,-349.13407,0.00016475,2]
[351170576,1738389045646,-455.24300877,0.00016475,2]
[351170578,1738389045655,-3000.0,0.0001648,2]
[351170580,1738389045664,-151.0,0.0001648,2]
[351170582,1738389045674,-172.427042,0.0001648,2]
[351170584,1738389045684,-172.427042,0.0001648,2]
[351170586,1738389045693,-151.0,0.0001648,2]
[351170588,1738389045703,-208.342255,0.0001648,2]
[351170590,1738389045713,-208.342255,0.0001648,2]
[351170592,1738389045722,-1614.78,0.00016488,2]
[351170594,1738389045732,-1614.78,0.00016488,2]
[351170596,1738389045741,-1614.78,0.00016488,2]
[351170598,1738389045751,-1614.78,0.00016488,2]
[351170600,1738389045760,-1614.78,0.00016488,2]
[351170602,1738389045769,-789.3,0.00016488,2]
[351170604,1738389045778,-789.3,0.00016488,2]
[351170606,1738389045791,-789.3,0.00016488,2]
[351170608,1738389045800,-1614.78,0.00016489,2]
[351170610,1738389045809,-3000.0,0.0001649,2]
[351170612,1738389045819,-151.0,0.0001649,2]
[351170614,1738389045830,-789.3,0.00016498,2]
[351170616,1738389045840,-151.0,0.00016499,2]
[351170618,1738389045849,-3000.0,0.000165,2]
[351170620,1738389045859,-151.0,0.000165,2]
[351170622,1738389045868,-208.342255,0.000165,2]
[351170624,1738389045878,-208.342255,0.000165,2]
[351170626,1738389045888,-151.0,0.000165,2]
[351170628,1738389045898,-354.4430635,0.000165,2]
[351170630,1738389045907,-3000.0,0.0001651,2]
[351170632,1738389045916,-172.427042,0.0001651,2]
[351170634,1738389045926,-172.427042,0.0001651,2]
[351170636,1738389045935,-151.0,0.0001651,2]
[351170638,1738389045945,-3000.0,0.0001652,2]
[351170640,1738389045955,-1614.78,0.00016529,2]
[351170642,1738389045964,-789.3,0.00016529,2]
[351170644,1738389045974,-3000.0,0.0001653,2]
[351170646,1738389045983,-151.0,0.0001653,2]
[351170648,1738389045993,-208.342255,0.00016539,2]
[351170650,1738389046002,-208.342255,0.00016539,2]
[351170652,1738389046011,-3000.0,0.0001654,2]
[351170654,1738389046021,-3000.0,0.0001655,2]
[351170656,1738389046031,-151.0,0.0001655,2]
[351170658,1738389046041,-3000.0,0.0001656,2]
[351170660,1738389046051,-172.427042,0.0001656,2]
[351170662,1738389046060,-172.427042,0.0001656,2]
[351170664,1738389046069,-151.0,0.0001656,2]
[351170666,1738389046079,-3000.0,0.0001657,2]
[351170668,1738389046088,-208.342255,0.0001657,2]
[351170670,1738389046098,-208.342255,0.0001657,2]
[351170672,1738389046108,-1614.78,0.00016572,2]
[351170675,1738389046118,-1614.78,0.00016572,2]
[351170677,1738389046128,-1614.78,0.00016572,2]
[351170679,1738389046138,-789.3,0.00016572,2]
[351170681,1738389046147,-1614.78,0.00016572,2]
[351170683,1738389046157,-1614.89947415,0.00016572,2]
[351170685,1738389046166,-503.71693046,0.00016573,2]
[351170687,1738389046176,-503.82199146,0.00016573,2]
[351170689,1738389046185,-501.8525195,0.00016573,2]
[351170691,1738389046196,-196.16386137,0.00016573,2]
[351170693,1738389046204,-500.0,0.00016573,2]
[351170695,1738389046214,-500.0,0.00016573,2]
[351170697,1738389046223,-501.71339064,0.00016573,2]
[351170699,1738389046234,-500.0,0.00016573,2]
[351170701,1738389046243,-500.0,0.00016573,2]
[351170703,1738389046253,-151.0,0.00016573,2]
[351170705,1738389046263,-789.3,0.00016574,2]
[351170707,1738389046272,-789.3,0.00016574,2]
[351170709,1738389046281,-789.3,0.00016574,2]
[351170711,1738389046290,-789.3,0.00016574,2]
[351170713,1738389046299,-789.3,0.00016574,2]
[351170715,1738389046308,-789.46505366,0.00016574,2]
[351170717,1738389046317,-151.0,0.00016575,2]
[351170719,1738389046327,-151.0,0.00016575,2]
[351170720,1738389046337,-151.0,0.00016575,2]
[351170723,1738389046347,-151.0,0.00016575,2]
[351170725,1738389046356,-151.0,0.00016575,2]
[351170726,1738389046365,-151.0,0.00016575,2]
[351170729,1738389046374,-509.72042037,0.00016575,2]
[351170731,1738389046384,-518.80707705,0.00016575,2]
[351170733,1738389046393,-172.427042,0.00016575,2]
[351170734,1738389046402,-172.427042,0.00016575,2]
[351170736,1738389046412,-505.70833553,0.00016575,2]
[351170739,1738389046421,-336.53203912,0.00016575,2]
[351170741,1738389046431,-500.0,0.00016575,2]
[351170742,1738389046440,-500.0,0.00016575,2]
[351170745,1738389046449,-521.57733341,0.00016575,2]
[351170746,1738389046458,-500.0,0.00016575,2]
[351170749,1738389046467,-151.0,0.00016575,2]
[351170750,1738389046477,-500.0,0.00016575,2]
[351170752,1738389046487,-380.70153636,0.00016575,2]
[351170754,1738389046496,-166.97747004,0.00016575,2]
[351170756,1738389046505,-500.0,0.00016575,2]
[351170758,1738389046515,-500.0,0.00016575,2]
[351170761,1738389046524,-500.0,0.00016575,2]
[351170762,1738389046535,-508.90086988,0.00016575,2]
[351170764,1738389046544,-500.0,0.00016575,2]
[351170766,1738389046554,-500.0,0.00016575,2]
[351170769,1738389046563,-507.34943422,0.00016575,2]
[351170771,1738389046573,-500.0,0.00016575,2]
[351170773,1738389046583,-500.0,0.00016575,2]
[351170784,1738389046676,-506.20905115,0.00016575,2]
[351170786,1738389046686,-509.66748153,0.00016575,2]
[351170788,1738389046696,-512.78210269,0.00016575,2]
[351170790,1738389046706,-500.0,0.00016575,2]
[351170792,1738389046716,-228.01378121,0.00016575,2]
[351170794,1738389046725,-500.0,0.00016575,2]
[351170796,1738389046735,-500.0,0.00016575,2]
[351170798,1738389046744,-500.0,0.00016575,2]
[351170800,1738389046753,-500.0,0.00016575,2]
[351170802,1738389046763,-502.93808213,0.00016575,2]
[351170804,1738389046772,-500.0,0.00016575,2]
[351170806,1738389046784,-500.0,0.00016575,2]
[351170808,1738389046793,-500.0,0.00016575,2]
[351170810,1738389046804,-500.0,0.00016575,2]
[351170812,1738389046813,-500.0,0.00016575,2]
[351170814,1738389046823,-500.0,0.00016575,2]
[351170816,1738389046834,-500.0,0.00016575,2]
[351170818,1738389046843,-505.12872008,0.00016575,2]
[351170820,1738389046852,-500.0,0.00016575,2]
[351170822,1738389046863,-500.0,0.00016575,2]
[351170824,1738389046873,-500.0,0.00016575,2]
[351170826,1738389046882,-500.0,0.00016575,2]
[351170828,1738389046892,-500.0,0.00016575,2]
[351170830,1738389046901,-500.0,0.00016575,2]
[351170832,1738389046911,-500.0,0.00016575,2]
[351170834,1738389046920,-500.0,0.00016575,2]
[351170836,1738389046929,-500.0,0.00016575,2]
[351170838,1738389046939,-500.0,0.00016575,2]
[351170840,1738389046948,-208.342255,0.00016575,2]
[351170842,1738389046958,-208.342255,0.00016575,2]
[351170844,1738389046967,-500.0,0.00016575,2]
[351170846,1738389046977,-208.342255,0.00016575,2]
[351170848,1738389046987,-208.342255,0.00016575,2]
[351170850,1738389046997,-500.0,0.00016575,2]
[351170852,1738389047006,-500.0,0.00016575,2]
[351170854,1738389047015,-500.0,0.00016575,2]
[351170856,1738389047025,-500.0,0.00016575,2]
[351170858,1738389047034,-619.15,0.00016575,2]
[351170860,1738389047044,-500.0,0.00016575,2]
[351170862,1738389047053,-500.0,0.00016575,2]
[351170864,1738389047062,-500.0,0.00016575,2]
[351170866,1738389047072,-235.17242959,0.00016575,2]
[351170868,1738389047081,-500.0,0.00016575,2]
[351170870,1738389047090,-350.38126527,0.00016575,2]
[351170872,1738389047100,-500.0,0.00016575,2]
[351170874,1738389047110,-500.0,0.00016575,2]
[351170876,1738389047119,-500.0,0.00016575,2]
[351170878,1738389047129,-194.23451183,0.00016575,2]
[351170880,1738389047139,-500.0,0.00016575,2]
[351170883,1738389047148,-500.0,0.00016575,2]
[351170884,1738389047158,-500.0,0.00016575,2]
[351170886,1738389047168,-500.0,0.00016575,2]
[351170888,1738389047177,-500.0,0.00016575,2]
[351170890,1738389047187,-500.0,0.00016575,2]
[351170892,1738389047196,-500.0,0.00016575,2]
[351170894,1738389047205,-404.07418017,0.00016575,2]
[351170896,1738389047215,-500.0,0.00016575,2]
[351170899,1738389047224,-500.0,0.00016575,2]
[351170901,1738389047233,-512.83980882,0.00016575,2]
[351170903,1738389047242,-500.0,0.00016575,2]
[351170905,1738389047251,-500.0,0.00016575,2]
[351170907,1738389047261,-432.73941033,0.00016575,2]
[351170909,1738389047270,-500.0,0.00016575,2]
[351170911,1738389047279,-500.0,0.00016575,2]
[351170912,1738389047288,-500.0,0.00016575,2]
[351170914,1738389047297,-500.0,0.00016575,2]
[351170916,1738389047307,-500.0,0.00016575,2]
[351170918,1738389047317,-500.0,0.00016575,2]
[351170920,1738389047327,-500.0,0.00016575,2]
[351170922,1738389047335,-500.0,0.00016575,2]
[351170924,1738389047345,-500.0,0.00016575,2]
[351170926,1738389047355,-500.0,0.00016575,2]
[351170928,1738389047364,-221.89271372,0.00016575,2]
[351170930,1738389047373,-500.0,0.00016575,2]
[351170932,1738389047382,-500.0,0.00016575,2]
[351170934,1738389047391,-500.0,0.00016575,2]
[351170936,1738389047400,-338.77299106,0.00016575,2]
[351170938,1738389047410,-500.0,0.00016575,2]
[351170940,1738389047419,-504.46739239,0.00016575,2]
[351170942,1738389047428,-500.0,0.00016575,2]
[351170944,1738389047437,-500.0,0.00016575,2]
[351170946,1738389047446,-500.0,0.00016575,2]
[351170948,1738389047455,-500.0,0.00016575,2]
[351170950,1738389047464,-410.41491542,0.00016575,2]
[351170952,1738389047474,-500.0,0.00016575,2]
[351170954,1738389047484,-500.0,0.00016575,2]
[351170956,1738389047493,-500.0,0.00016575,2]
[351170958,1738389047502,-288.57718475,0.00016575,2]
[351170960,1738389047512,-500.0,0.00016575,2]
[351170962,1738389047521,-500.0,0.00016575,2]
[351170964,1738389047531,-500.0,0.00016575,2]
[351170966,1738389047540,-500.0,0.00016575,2]
[351170968,1738389047550,-500.0,0.00016575,2]
[351170970,1738389047559,-500.0,0.00016575,2]
[351170972,1738389047569,-507.56496256,0.00016575,2]
[351170974,1738389047578,-490.61156774,0.00016575,2]
[351170976,1738389047587,-500.0,0.00016575,2]
[351170978,1738389047596,-500.0,0.00016575,2]
[351170980,1738389047605,-647.31891659,0.00016575,2]
[351170982,1738389047615,-500.0,0.00016575,2]
[351170984,1738389047624,-500.0,0.00016575,2]
[351170986,1738389047632,-151.73992059,0.00016575,2]
[351170988,1738389047641,-500.0,0.00016575,2]
[351170990,1738389047650,-500.0,0.00016575,2]
[351170992,1738389047659,-500.0,0.00016575,2]
[351170994,1738389047668,-500.0,0.00016575,2]
[351170996,1738389047678,-500.0,0.00016575,2]
[351170999,1738389047689,-420.63192141,0.00016575,2]
[351171001,1738389047699,-500.0,0.00016575,2]
[351171003,1738389047708,-500.0,0.00016575,2]
[351171004,1738389047717,-500.0,0.00016575,2]
[351171006,1738389047727,-500.0,0.00016575,2]
[351171009,1738389047737,-500.0,0.00016575,2]
[351171010,1738389047746,-500.0,0.00016575,2]
[351171012,1738389047755,-500.0,0.00016575,2]
[351171014,1738389047765,-500.0,0.00016575,2]
[351171016,1738389047774,-500.0,0.00016575,2]
[351171018,1738389047785,-505.61878665,0.00016575,2]
[351171021,1738389047795,-500.0,0.00016575,2]
[351171023,1738389047804,-556.2861694,0.00016575,2]
[351171025,1738389047814,-500.0,0.00016575,2]
[351171026,1738389047823,-54978.28,0.00016575,2]
[351171029,1738389047834,-633.5,0.00016575,2]
[351171031,1738389047843,-500.0,0.00016575,2]
[351171033,1738389047852,-500.0,0.00016575,2]
[351171035,1738389047863,-500.0,0.00016575,2]
[351171037,1738389047873,-500.0,0.00016575,2]
[351171039,1738389047882,-500.0,0.00016575,2]
[351171040,1738389047892,-500.0,0.00016575,2]
[351171042,1738389047901,-500.0,0.00016575,2]
[351171044,1738389047910,-500.0,0.00016575,2]
[351171046,1738389047920,-500.0,0.00016575,2]
[351171048,1738389047929,-500.0,0.00016575,2]
[351171051,1738389047938,-505.28507803,0.00016575,2]
[351171053,1738389047948,-500.0,0.00016575,2]
[351171055,1738389047956,-500.0,0.00016575,2]
[351171056,1738389047965,-1043.7,0.00016575,2]
[351171059,1738389047975,-500.0,0.00016575,2]
[351171060,1738389047985,-3190.69,0.00016575,2]
[351171062,1738389047994,-500.0,0.00016575,2]
[351171065,1738389048004,-500.0,0.00016575,2]
[351171067,1738389048014,-500.0,0.00016575,2]
[351171069,1738389048023,-500.0,0.00016575,2]
[351171071,1738389048032,-500.0,0.00016575,2]
[351171073,1738389048043,-500.0,0.00016575,2]
[351171075,1738389048052,-500.0,0.00016575,2]
[351171077,1738389048061,-354.68579301,0.00016575,2]
[351171079,1738389048071,-500.0,0.00016575,2]
[351171080,1738389048080,-500.0,0.00016575,2]
[351171082,1738389048090,-500.0,0.00016575,2]
[351171084,1738389048099,-1220.32,0.00016575,2]
[351171086,1738389048108,-635.75,0.00016575,2]
[351171088,1738389048118,-500.0,0.00016575,2]
[351171091,1738389048127,-505.65040832,0.00016575,2]
[351171093,1738389048136,-500.0,0.00016575,2]
[351171095,1738389048146,-500.0,0.00016575,2]
[351171097,1738389048155,-500.0,0.00016575,2]
[351171098,1738389048165,-505.9516442,0.00016575,2]
[351171100,1738389048174,-500.0,0.00016575,2]
[351171102,1738389048184,-500.0,0.00016575,2]
[351171105,1738389048194,-500.0,0.00016575,2]
[351171107,1738389048203,-240.75,0.00016575,2]
[351171108,1738389048213,-500.0,0.00016575,2]
[351171111,1738389048223,-500.0,0.00016575,2]
[351171113,1738389048233,-500.0,0.00016575,2]
[351171115,1738389048243,-507.42475158,0.00016575,2]
[351171125,1738389048331,-186.93177399,0.00016575,2]
[351171127,1738389048341,-500.0,0.00016575,2]
[351171129,1738389048351,-500.0,0.00016575,2]
[351171131,1738389048360,-500.0,0.00016575,2]
[351171133,1738389048370,-519.19,0.00016575,2]
[351171135,1738389048380,-500.0,0.00016575,2]
[351171137,1738389048389,-391.26515315,0.00016575,2]
[351171139,1738389048398,-644.73796026,0.00016575,2]
[351171141,1738389048407,-500.0,0.00016575,2]
[351171143,1738389048417,-500.0,0.00016575,2]
[351171144,1738389048426,-500.0,0.00016575,2]
[351171145,1738389048436,-500.0,0.00016575,2]
[351171146,1738389048445,-500.0,0.00016575,2]
[351171147,1738389048454,-500.0,0.00016575,2]
[351171148,1738389048463,-500.0,0.00016575,2]
[351171149,1738389048473,-500.0,0.00016575,2]
[351171150,1738389048483,-500.0,0.00016575,2]
[351171151,1738389048493,-413.92976909,0.00016575,2]
[351171152,1738389048502,-1075.25,0.00016575,2]
[351171153,1738389048512,-500.0,0.00016575,2]
[351171154,1738389048521,-500.0,0.00016575,2]
[351171155,1738389048530,-502.25971699,0.00016575,2]
[351171156,1738389048540,-500.0,0.00016575,2]
[351171158,1738389048549,-508.331489,0.00016575,2]
[351171159,1738389048559,-500.0,0.00016575,2]
[351171161,1738389048570,-817.56,0.00016575,2]
[351171163,1738389048580,-500.0,0.00016575,2]
[351171165,1738389048589,-500.0,0.00016575,2]
[351171167,1738389048599,-1839.94,0.00016575,2]
[351171169,1738389048608,-500.0,0.00016575,2]
[351171171,1738389048618,-500.0,0.00016575,2]
[351171173,1738389048627,-500.0,0.00016575,2]
[351171175,1738389048636,-500.0,0.00016575,2]
[351171177,1738389048646,-500.0,0.00016575,2]
[351171179,1738389048655,-500.0,0.00016575,2]
[351171181,1738389048664,-505.24506098,0.00016575,2]
[351171183,1738389048673,-500.0,0.00016575,2]
[351171185,1738389048683,-825.7,0.00016575,2]
[351171187,1738389048692,-500.0,0.00016575,2]
[351171189,1738389048701,-500.0,0.00016575,2]
[351171191,1738389048710,-242.39662894,0.00016575,2]
[351171193,1738389048720,-500.0,0.00016575,2]
[351171195,1738389048729,-500.0,0.00016575,2]
[351171197,1738389048738,-509.73427799,0.00016575,2]
[351171199,1738389048748,-500.0,0.00016575,2]
[351171202,1738389048758,-549.67,0.00016575,2]
[351171204,1738389048768,-1034.38,0.00016575,2]
[351171206,1738389048778,-351.65239499,0.00016575,2]
[351171208,1738389048792,-500.0,0.00016575,2]
[351171210,1738389048802,-500.0,0.00016575,2]
[351171211,1738389048811,-503.58501105,0.00016575,2]
[351171214,1738389048822,-500.0,0.00016575,2]
[351171215,1738389048833,-590.92,0.00016575,2]
[351171218,1738389048843,-500.0,0.00016575,2]
[351171220,1738389048853,-2609.95,0.00016575,2]
[351171222,1738389048863,-533.66232966,0.00016575,2]
[351171224,1738389048873,-504.15336602,0.00016575,2]
[351171226,1738389048884,-500.0,0.00016575,2]
[351171228,1738389048893,-500.0,0.00016575,2]
[351171230,1738389048903,-500.0,0.00016575,2]
[351171232,1738389048913,-1000.0,0.00016575,7]
[351171234,1738389048923,-500.0,0.00016575,2]
[351171236,1738389048933,-500.0,0.00016575,2]
[351171238,1738389048942,-833.06,0.00016575,2]
[351171240,1738389048953,-500.0,0.00016575,2]
[351171242,1738389048963,-500.0,0.00016575,2]
[351171244,1738389048972,-500.0,0.00016575,2]
[351171246,1738389048982,-500.0,0.00016575,2]
[351171248,1738389048992,-306.60071304,0.00016575,2]
[351171250,1738389049001,-1159.11,0.00016575,2]
[351171252,1738389049011,-500.0,0.00016575,2]
[351171254,1738389049020,-500.0,0.00016575,2]
[351171256,1738389049030,-500.0,0.00016575,2]
[351171258,1738389049040,-208.342255,0.00016579,2]
[351171260,1738389049050,-208.34226,0.00016579,2]
[351171262,1738389049059,-3000.0,0.0001658,2]
[351171264,1738389049068,-3000.0,0.0001659,2]
[351171266,1738389049078,-231.404961,0.0001659,2]
[351171268,1738389049088,-172.427042,0.0001659,2]
[351171270,1738389049098,-172.427042,0.0001659,2]
[351171272,1738389049108,-151.0,0.0001659,2]
[351171274,1738389049118,-3000.0,0.000166,2]
[351171276,1738389049129,-151.0,0.000166,2]
[351171278,1738389049139,-151.0,0.000166,2]
[351171280,1738389049148,-154.3747797,0.000166,2]
[351171282,1738389049158,-215.2923755,0.000166,2]
[351171284,1738389049168,-163.4256987,0.000166,2]
[351171286,1738389049178,-354.4430635,0.000166,2]
[351171288,1738389049187,-354.4430635,0.000166,2]
[351171290,1738389049198,-713.5607187,0.000166,2]
[351171292,1738389049208,-3000.0,0.0001661,2]
[351171294,1738389049218,-172.427042,0.0001661,2]
[351171296,1738389049230,-172.427042,0.0001661,2]
[351171298,1738389049242,-233.345835,0.0001661,2]
[351171300,1738389049252,-5460.019566,0.0001662,2]
[351171302,1738389049261,-151.0,0.000167,2]
[351171304,1738389049271,-151.0,0.000167,2]
[351171306,1738389049281,-151.0,0.000167,2]
[351171308,1738389049290,-151.0,0.00016712,2]
[351171310,1738389049299,-172.427042,0.00016712,2]
[351171312,1738389049309,-172.427042,0.00016712,2]
[351171314,1738389049319,-500.0,0.00016712,2]
[351171315,1738389049328,-568.61967412,0.00016712,2]
[351171317,1738389049338,-500.0,0.00016712,2]
[351171319,1738389049347,-345.71287339,0.00016712,2]
[351171321,1738389049356,-500.0,0.00016712,2]
[351171323,1738389049366,-500.0,0.00016712,2]
[351171326,1738389049375,-500.0,0.00016712,2]
[351171328,1738389049385,-500.0,0.00016712,2]
[351171330,1738389049394,-500.0,0.00016712,2]
[351171332,1738389049404,-530.44938497,0.00016712,2]
[351171334,1738389049413,-500.0,0.00016712,2]
[351171336,1738389049423,-500.0,0.00016712,2]
[351171338,1738389049434,-500.0,0.00016712,2]
[351171340,1738389049443,-500.0,0.00016712,2]
[351171342,1738389049453,-500.0,0.00016712,2]
[351171344,1738389049462,-500.0,0.00016712,2]
[351171346,1738389049472,-500.0,0.00016712,2]
[351171348,1738389049482,-500.0,0.00016712,2]
[351171350,1738389049492,-500.0,0.00016712,2]
[351171352,1738389049502,-601.25,0.00016712,2]
[351171354,1738389049511,-500.0,0.00016712,2]
[351171356,1738389049521,-500.0,0.00016712,2]
[351171358,1738389049531,-500.0,0.00016712,2]
[351171360,1738389049540,-500.0,0.00016712,2]
[351171362,1738389049550,-500.0,0.00016712,2]
[351171364,1738389049560,-500.0,0.00016712,2]
[351171366,1738389049570,-500.0,0.00016712,2]
[351171368,1738389049580,-500.0,0.00016712,2]
[351171370,1738389049589,-500.0,0.00016712,2]
[351171372,1738389049598,-500.0,0.00016712,2]
[351171374,1738389049608,-500.0,0.00016712,2]
[351171376,1738389049618,-500.0,0.00016712,2]
[351171378,1738389049628,-619.15,0.00016712,2]
[351171380,1738389049638,-500.0,0.00016712,2]
[351171382,1738389049647,-467.86987481,0.00016712,2]
[351171384,1738389049656,-500.0,0.00016712,2]
[351171386,1738389049666,-500.0,0.00016712,2]
[351171388,1738389049680,-500.0,0.00016712,2]
[351171390,1738389049691,-500.0,0.00016712,2]
[351171392,1738389049700,-250.8189435,0.00016712,2]
[351171394,1738389049710,-506.55253723,0.00016712,2]
[351171396,1738389049719,-548.41407387,0.00016712,2]
[351171398,1738389049728,-500.0,0.00016712,2]
[351171400,1738389049739,-500.0,0.00016712,2]
[351171402,1738389049749,-500.0,0.00016712,2]
[351171404,1738389049758,-500.0,0.00016712,2]
[351171406,1738389049768,-500.0,0.00016712,2]
[351171408,1738389049777,-500.0,0.00016712,2]
[351171410,1738389049788,-505.54873306,0.00016712,2]
[351171412,1738389049800,-504.89239055,0.00016712,2]
[351171415,1738389049809,-252.06002657,0.00016712,2]
[351171425,1738389049900,-500.0,0.00016712,2]
[351171427,1738389049909,-500.0,0.00016712,2]
[351171429,1738389049919,-500.0,0.00016712,2]
[351171431,1738389049928,-500.0,0.00016712,2]
[351171433,1738389049938,-500.0,0.00016712,2]
[351171435,1738389049948,-490.68169986,0.00016712,2]
[351171437,1738389049957,-500.0,0.00016712,2]
[351171439,1738389049966,-500.0,0.00016712,2]
[351171441,1738389049976,-507.68129292,0.00016712,2]
[351171443,1738389049986,-500.0,0.00016712,2]
[351171445,1738389049996,-500.0,0.00016712,2]
[351171447,1738389050005,-500.0,0.00016712,2]
[351171449,1738389050015,-623.88,0.00016712,2]
[351171451,1738389050024,-500.0,0.00016712,2]
[351171453,1738389050034,-500.0,0.00016712,2]
[351171455,1738389050043,-500.0,0.00016712,2]
[351171457,1738389050052,-500.0,0.00016712,2]
[351171459,1738389050061,-500.0,0.00016712,2]
[351171461,1738389050070,-500.0,0.00016712,2]
[351171463,1738389050080,-636.62,0.00016712,2]
[351171465,1738389050089,-500.0,0.00016712,2]
[351171467,1738389050099,-500.0,0.00016712,2]
[351171469,1738389050108,-500.0,0.00016712,2]
[351171471,1738389050118,-500.0,0.00016712,2]
[351171473,1738389050127,-500.0,0.00016712,2]
[351171475,1738389050136,-242.94551503,0.00016712,2]
[351171477,1738389050146,-500.0,0.00016712,2]
[351171479,1738389050156,-521.72516624,0.00016712,2]
[351171481,1738389050165,-500.0,0.00016712,2]
[351171483,1738389050175,-500.0,0.00016712,2]
[351171485,1738389050184,-535.87397067,0.00016712,2]
[351171487,1738389050194,-531.30366927,0.00016712,2]
[351171489,1738389050203,-500.0,0.00016712,2]
[351171491,1738389050213,-486.44250239,0.00016712,2]
[351171493,1738389050223,-500.0,0.00016712,2]
[351171495,1738389050236,-54978.28,0.00016712,2]
[351171497,1738389050256,-633.5,0.00016712,2]
[351171499,1738389050265,-500.0,0.00016712,2]
[351171501,1738389050275,-500.0,0.00016712,2]
[351171503,1738389050285,-500.0,0.00016712,2]
[351171505,1738389050296,-500.0,0.00016712,2]
[351171507,1738389050307,-500.0,0.00016712,2]
[351171510,1738389050317,-500.0,0.00016712,2]
[351171512,1738389050326,-500.0,0.00016712,2]
[351171513,1738389050336,-500.0,0.00016712,2]
[351171515,1738389050345,-1043.7,0.00016712,2]
[351171517,1738389050355,-500.0,0.00016712,2]
[351171520,1738389050364,-3190.69,0.00016712,2]
[351171522,1738389050373,-500.0,0.00016712,2]
[351171524,1738389050383,-500.0,0.00016712,2]
[351171526,1738389050393,-500.0,0.00016712,2]
[351171528,1738389050402,-500.0,0.00016712,2]
[351171530,1738389050412,-500.0,0.00016712,2]
[351171532,1738389050422,-500.0,0.00016712,2]